bitfinex/quotes_SOLUSD_20241022
["timestamp","ask_amount","ask_price","bid_price","bid_amount"]
[1729628340775,5.9263,168.74,168.67,21.68336092]
[1729628341459,5.9255,168.76,168.66,23.776884]
[1729628341660,5.9265,168.74,168.67,21.68336092]
[1729628341860,5.9265,168.74,168.66,23.776884]
[1729628341861,5.9265,168.74,168.68,21.68336092]
[1729628343070,5.9267,168.73,168.67,21.68336092]
[1729628343393,5.9275,168.71,168.65,21.68336092]
[1729628345466,16.1413,168.71,168.61,6.4928]
[1729628345672,16.1413,168.71,168.58,15.7393]
[1729628345891,5.9291,168.66,168.59,21.68336092]
[1729628346099,20.0,168.68,168.59,21.68336092]
[1729628346295,5.9292,168.66,168.59,21.68336092]
[1729628347390,5.9301,168.63,168.55,21.68336092]
[1729628347798,5.9305,168.62,168.54,21.68336092]
[1729628348093,5.9305,168.62,168.55,21.68336092]
[1729628348701,5.9301,168.63,168.55,21.68336092]
[1729628349494,5.9308,168.62,168.54,21.68336092]
[1729628349693,5.9313,168.6,168.52,21.68336092]
[1729628350987,5.9313,168.6,168.53,21.68336092]
[1729628356409,5.9313,168.6,168.54,21.68336092]
[1729628356605,25.9301,168.63,168.56,21.68336092]
[1729628357007,5.9304,168.62,168.56,21.68336092]
[1729628358706,5.9304,168.62,168.55,21.68336092]
[1729628359192,5.9304,168.62,168.54,21.68336092]
[1729628360896,5.9304,168.62,168.55,21.68336092]
[1729628362419,15.71,168.64,168.49,28.35017331]
[1729628362420,5.9301,168.63,168.56,21.68336092]
[1729628374830,5.9301,168.63,168.55,21.68336092]
[1729628377033,15.71,168.64,168.58,10.84168046]
[1729628377234,5.9295,168.65,168.59,21.68336092]
[1729628377417,16.4737,168.68,168.59,21.68336092]
[1729628377736,5.9291,168.66,168.59,21.68336092]
[1729628379335,5.9291,168.66,168.6,21.68336092]
[1729628382645,5.9291,168.66,168.61,21.68336092]
[1729628384826,5.9291,168.66,168.6,21.68336092]
[1729628390031,5.9291,168.66,168.61,21.68336092]
[1729628392343,4.41586067,168.65,168.61,21.68336092]
[1729628392666,5.9291,168.66,168.61,21.68336092]
[1729628392962,4.4158526,168.65,168.61,21.68336092]
[1729628393258,5.9291,168.66,168.6,21.68336092]
[1729628393433,4.41724113,168.65,168.6,21.68336092]
[1729628393634,5.9291,168.66,168.6,21.68336092]
[1729628393864,4.41724113,168.65,168.6,21.68336092]
[1729628394042,5.9291,168.66,168.6,21.68336092]
[1729628394245,4.41724916,168.65,168.6,21.68336092]
[1729628394444,5.9291,168.66,168.6,21.68336092]
[1729628394761,4.4187782,168.65,168.6,21.68336092]
[1729628395058,5.9291,168.66,168.6,21.68336092]
[1729628395359,4.41880335,168.65,168.6,21.68336092]
[1729628395562,4.41880335,168.64,168.6,21.68336092]
[1729628395739,4.41880335,168.65,168.6,21.68336092]
[1729628395937,4.42053701,168.64,168.6,21.68336092]
[1729628396141,5.9291,168.66,168.6,21.68336092]
[1729628396343,4.42235234,168.65,168.6,21.68336092]
[1729628396552,4.42235234,168.64,168.6,21.68336092]
[1729628396751,5.9291,168.66,168.6,21.68336092]
[1729628396950,4.42238779,168.65,168.6,21.68336092]
[1729628397270,4.42238779,168.64,168.6,21.68336092]
[1729628397446,4.42238779,168.63,168.6,21.68336092]
[1729628397648,5.9291,168.66,168.6,21.68336092]
[1729628397853,4.42448018,168.65,168.6,21.68336092]
[1729628398063,4.42448018,168.64,168.6,21.68336092]
[1729628398238,4.42448018,168.63,168.6,21.68336092]
[1729628398439,5.9291,168.66,168.6,21.68336092]
[1729628398644,4.42623227,168.65,168.6,21.68336092]
[1729628398844,4.42623227,168.64,168.6,21.68336092]
[1729628399073,4.42623227,168.63,168.6,21.68336092]
[1729628399364,4.42827968,168.62,168.6,21.68336092]
[1729628399564,5.9291,168.66,168.6,21.68336092]
[1729628399743,4.42827697,168.65,168.6,21.68336092]
[1729628399943,4.42827697,168.64,168.6,21.68336092]
[1729628400240,4.42827697,168.63,168.56,23.776884]
[1729628400565,5.9291,168.66,168.56,23.776884]
[1729628400566,5.9291,168.66,168.59,21.68336092]
[1729628400863,4.42825828,168.65,168.6,21.68336092]
[1729628401049,4.42825828,168.64,168.6,21.68336092]
[1729628401362,4.42825828,168.63,168.6,21.68336092]
[1729628401545,5.9291,168.66,168.6,21.68336092]
[1729628401746,4.43019404,168.65,168.6,21.68336092]
[1729628402059,4.43019404,168.64,168.6,21.68336092]
[1729628402359,4.43019404,168.63,168.6,21.68336092]
[1729628402541,4.43019404,168.62,168.6,21.68336092]
[1729628402848,5.9291,168.66,168.6,21.68336092]
[1729628403034,4.43224908,168.65,168.6,21.68336092]
[1729628403241,4.43224908,168.64,168.6,21.68336092]
[1729628403542,4.43224908,168.63,168.62,21.68336092]
[1729628405667,4.43224908,168.63,168.61,21.68336092]
[1729628405867,4.43734162,168.62,168.61,21.68336092]
[1729628408882,25.9287,168.67,168.61,21.68336092]
[1729628409057,4.43937546,168.66,168.61,21.68336092]
[1729628409379,25.9287,168.67,168.61,21.68336092]
[1729628409982,4.43963942,168.66,168.61,21.68336092]
[1729628410159,25.9287,168.67,168.61,21.68336092]
[1729628410474,4.43989117,168.66,168.61,21.68336092]
[1729628410652,4.43989117,168.66,168.56,110.51032768]
[1729628410653,25.9287,168.67,168.6,21.68336092]
[1729628410853,4.43997358,168.66,168.61,21.68336092]
[1729628411062,25.9287,168.67,168.61,21.68336092]
[1729628411262,4.43997755,168.66,168.61,21.68336092]
[1729628411453,25.9287,168.67,168.6,21.68336092]
[1729628411655,4.44029833,168.66,168.6,21.68336092]
[1729628411855,25.9287,168.67,168.6,21.68336092]
[1729628412076,4.44029819,168.66,168.6,21.68336092]
[1729628412280,25.9287,168.67,168.6,21.68336092]
[1729628412487,4.44056981,168.66,168.6,21.68336092]
[1729628412654,25.9287,168.67,168.6,21.68336092]
[1729628412965,4.44056979,168.66,168.6,21.68336092]
[1729628413159,25.9287,168.67,168.61,21.68336092]
[1729628414766,16.4737,168.68,168.64,21.68336092]
[1729628414974,16.4737,168.68,168.56,110.61032768]
[1729628414975,5.9276,168.71,168.65,21.68336092]
[1729628415285,16.5977,168.72,168.6,6.4524]
[1729628415286,4.43996297,168.7,168.66,21.68336092]
[1729628415590,16.5977,168.72,168.66,21.68336092]
[1729628415591,4.43996297,168.69,168.66,21.68336092]
[1729628415768,22.5247,168.72,168.66,21.68336092]
[1729628415964,4.43953761,168.71,168.64,21.68336092]
[1729628416191,4.43953761,168.7,168.6,6.4524]
[1729628416367,5.929,168.67,168.6,21.68336092]
[1729628416558,5.9292,168.66,168.6,21.68336092]
[1729628417087,14.8183,168.71,168.61,21.68336092]
[1729628417262,5.9287,168.67,168.61,21.68336092]
[1729628417460,4.4401477,168.66,168.61,21.68336092]
[1729628417656,5.9287,168.67,168.61,21.68336092]
[1729628417857,4.44014769,168.66,168.61,21.68336092]
[1729628418067,5.9287,168.67,168.61,21.68336092]
[1729628418467,4.4405514,168.66,168.61,21.68336092]
[1729628418992,10.3696514,168.66,168.59,21.68336092]
[1729628419289,21.2148,168.66,168.59,21.68336092]
[1729628421191,4.4422724,168.65,168.59,21.68336092]
[1729628421486,21.2148,168.66,168.59,21.68336092]
[1729628421786,4.44236341,168.65,168.59,21.68336092]
[1729628421979,21.2148,168.66,168.59,21.68336092]
[1729628422388,4.4430074,168.65,168.59,21.68336092]
[1729628422694,21.2148,168.66,168.59,21.68336092]
[1729628422886,4.44312226,168.65,168.59,21.68336092]
[1729628423086,5.9298,168.64,168.56,6.4524]
[1729628423261,5.9302,168.63,168.55,21.68336092]
[1729628423890,15.2857,168.66,168.52,6.5462]
[1729628424065,20.0,168.63,168.5,16.4409]
[1729628424265,4.44464524,168.62,168.51,21.68336092]
[1729628424465,5.9316,168.59,168.51,21.68336092]
[1729628424667,5.9316,168.59,168.52,21.68336092]
[1729628426980,20.0,168.61,168.52,21.68336092]
[1729628427178,5.9312,168.6,168.52,21.68336092]
[1729628429393,5.9312,168.6,168.51,21.68336092]
[1729628429589,43.776884,168.63,168.51,21.68336092]
[1729628429900,43.776884,168.63,168.5,16.4409]
[1729628429901,5.9321,168.58,168.5,38.12426092]
[1729628431003,5.9321,168.58,168.51,21.68336092]
[1729628432291,5.9321,168.58,168.5,38.12426092]
[1729628433907,5.9321,168.58,168.5,21.68336092]
[1729628434110,20.0,168.58,168.49,21.68336092]
[1729628434313,26.2041,168.58,168.44,6.1123]
[1729628434494,5.9335,168.54,168.45,21.68336092]
[1729628434813,5.9335,168.54,168.44,6.1123]
[1729628434814,5.9335,168.54,168.46,21.68336092]
[1729628437411,20.0,168.56,168.49,21.68336092]
[1729628437615,20.0,168.56,168.5,21.68336092]
[1729628439822,5.9322,168.57,168.5,21.68336092]
[1729628447726,5.9322,168.57,168.49,21.68336092]
[1729628448911,5.9322,168.57,168.5,21.68336092]
[1729628450710,5.9326,168.56,168.5,21.68336092]
[1729628452019,25.9323,168.57,168.5,21.68336092]
[1729628455022,25.9323,168.57,168.49,21.68336092]
[1729628458720,25.9323,168.57,168.5,21.68336092]
[1729628467463,25.9323,168.57,168.49,21.68336092]
[1729628467769,25.9323,168.57,168.5,21.68336092]
[1729628473970,4.44152875,168.56,168.5,21.68336092]
[1729628474144,25.9323,168.57,168.51,21.68336092]
[1729628474350,4.44215345,168.56,168.52,21.68336092]
[1729628474663,25.9323,168.57,168.52,21.68336092]
[1729628475463,4.44285061,168.56,168.52,21.68336092]
[1729628475671,16.5319,168.59,168.54,10.84168046]
[1729628475968,4.44277142,168.58,168.54,21.68336092]
[1729628476141,4.44277142,168.57,168.55,21.68336092]
[1729628476342,4.44277142,168.57,168.49,6.1369]
[1729628476343,6.18157179,168.6,168.56,21.68336092]
[1729628476560,5.9304,168.62,168.57,21.68336092]
[1729628476766,4.4427161,168.61,168.57,21.68336092]
[1729628476953,4.4427161,168.6,168.57,21.68336092]
[1729628477264,5.9304,168.62,168.57,21.68336092]
[1729628477466,4.4419206,168.61,168.55,21.68336092]
[1729628477640,5.9304,168.62,168.55,21.68336092]
[1729628477840,4.44200207,168.61,168.55,21.68336092]
[1729628478037,5.9304,168.62,168.55,21.68336092]
[1729628478262,4.44200242,168.61,168.55,21.68336092]
[1729628478558,5.9304,168.62,168.55,21.68336092]
[1729628478764,5.9311,168.6,168.52,21.68336092]
[1729628478976,20.0,168.6,168.52,21.68336092]
[1729628479158,5.9319,168.58,168.52,21.68336092]
[1729628480056,5.9319,168.58,168.53,21.68336092]
[1729628481679,5.9313,168.6,168.54,21.68336092]
[1729628482050,4.44221571,168.59,168.54,21.68336092]
[1729628482372,5.9313,168.6,168.54,21.68336092]
[1729628483166,4.4419053,168.59,168.54,21.68336092]
[1729628483370,5.9313,168.6,168.54,21.68336092]
[1729628483561,4.44166627,168.59,168.54,21.68336092]
[1729628483762,20.0,168.62,168.54,21.68336092]
[1729628483962,10.37256551,168.61,168.54,21.68336092]
[1729628484165,24.44166551,168.6,168.54,21.68336092]
[1729628484466,20.0,168.6,168.54,21.68336092]
[1729628485051,5.9309,168.61,168.54,21.68336092]
[1729628485251,4.44099972,168.6,168.54,21.68336092]
[1729628485572,5.9309,168.61,168.54,21.68336092]
[1729628485771,4.44058362,168.6,168.54,21.68336092]
[1729628486063,5.9309,168.61,168.56,21.68336092]
[1729628486255,20.0,168.62,168.57,21.68336092]
[1729628486463,4.43966331,168.61,168.59,21.68336092]
[1729628486678,18.43346259,168.65,168.5,23.876884]
[1729628486679,18.43346259,168.65,168.6,21.68336092]
[1729628486971,10.36920517,168.64,168.57,21.68336092]
[1729628487156,4.43940517,168.63,168.57,21.68336092]
[1729628487358,5.9298,168.64,168.58,21.68336092]
[1729628487562,4.43813412,168.63,168.58,21.68336092]
[1729628487862,5.9298,168.64,168.58,21.68336092]
[1729628488062,4.43814322,168.63,168.58,21.68336092]
[1729628488271,5.9298,168.64,168.58,21.68336092]
[1729628488447,4.43704372,168.63,168.58,21.68336092]
[1729628488766,5.9298,168.64,168.58,21.68336092]
[1729628488963,4.43705215,168.63,168.58,21.68336092]
[1729628489161,5.9298,168.64,168.58,21.68336092]
[1729628489359,4.43608342,168.63,168.58,21.68336092]
[1729628489548,5.9298,168.64,168.58,21.68336092]
[1729628489851,4.43607624,168.63,168.58,21.68336092]
[1729628490055,5.9298,168.64,168.58,21.68336092]
[1729628490254,4.43607641,168.63,168.58,21.68336092]
[1729628490466,5.9298,168.64,168.58,21.68336092]
[1729628490659,4.43522921,168.63,168.58,21.68336092]
[1729628490854,5.9298,168.64,168.58,21.68336092]
[1729628491054,4.43522651,168.63,168.58,21.68336092]
[1729628491253,5.9298,168.64,168.58,21.68336092]
[1729628491457,4.43453328,168.63,168.58,21.68336092]
[1729628491764,5.9298,168.64,168.58,21.68336092]
[1729628492467,18.43346259,168.65,168.58,21.68336092]
[1729628492651,5.9305,168.62,168.56,21.68336092]
[1729628492864,5.9317,168.59,168.5,21.1567]
[1729628493157,5.9317,168.59,168.53,21.68336092]
[1729628493668,5.9319,168.58,168.52,21.68336092]
[1729628493974,31.141,168.63,168.52,21.68336092]
[1729628494270,5.9315,168.59,168.52,21.68336092]
[1729628497659,5.9319,168.58,168.52,21.68336092]
[1729628497856,20.0,168.62,168.5,27.83446092]
[1729628497857,5.9326,168.56,168.5,27.83446092]
[1729628498057,5.9331,168.55,168.46,15.1608]
[1729628498266,5.9331,168.55,168.48,21.68336092]
[1729628498774,5.9331,168.55,168.49,21.68336092]
[1729628499757,5.9331,168.55,168.48,21.68336092]
[1729628509563,5.9331,168.55,168.46,15.1608]
[1729628509776,5.9331,168.55,168.48,21.68336092]
[1729628517297,5.9331,168.55,168.49,21.68336092]
[1729628518306,5.9331,168.55,168.5,21.68336092]
[1729628519883,5.9331,168.55,168.51,21.68336092]
[1729628520384,5.9315,168.59,168.53,21.68336092]
[1729628520585,20.0,168.58,168.52,21.68336092]
[1729628521903,5.9321,168.58,168.51,21.68336092]
[1729628522107,5.9327,168.56,168.47,23.776884]
[1729628522284,5.9327,168.56,168.49,21.68336092]
[1729628522477,5.9327,168.56,168.5,21.68336092]
[1729628523105,5.9327,168.56,168.51,21.68336092]
[1729628523611,5.9327,168.56,168.47,23.776884]
[1729628523612,5.9327,168.56,168.52,21.68336092]
[1729628525016,20.0,168.57,168.52,21.68336092]
[1729628525017,5.9317,168.59,168.52,21.68336092]
[1729628525315,20.0,168.58,168.52,21.68336092]
[1729628525685,5.9317,168.59,168.52,21.68336092]
[1729628526086,5.932,168.58,168.52,21.68336092]
[1729628532734,20.0,168.6,168.53,21.68336092]
[1729628533026,20.0,168.6,168.54,21.68336092]
[1729628533027,25.9314,168.6,168.54,21.68336092]
[1729628535228,25.9314,168.6,168.53,21.68336092]
[1729628537029,20.0,168.6,168.53,21.68336092]
[1729628537208,16.2953,168.61,168.55,21.68336092]
[1729628538032,4.43962892,168.6,168.55,21.68336092]
[1729628538219,22.2261,168.61,168.55,21.68336092]
[1729628538426,4.44066215,168.6,168.55,21.68336092]
[1729628538725,22.2261,168.61,168.55,21.68336092]
[1729628538926,4.44066215,168.6,168.55,21.68336092]
[1729628539133,22.2261,168.61,168.55,21.68336092]
[1729628539337,4.44091684,168.6,168.55,21.68336092]
[1729628539519,22.2261,168.61,168.55,21.68336092]
[1729628539722,4.44060108,168.6,168.55,21.68336092]
[1729628539920,22.2261,168.61,168.55,21.68336092]
[1729628540134,4.44060141,168.6,168.55,21.68336092]
[1729628540441,22.2261,168.61,168.55,21.68336092]
[1729628540643,4.44035861,168.6,168.55,21.68336092]
[1729628540846,22.2261,168.61,168.55,21.68336092]
[1729628541141,4.44035488,168.6,168.55,21.68336092]
[1729628541345,22.2261,168.61,168.54,21.68336092]
[1729628541544,4.44009432,168.6,168.54,21.68336092]
[1729628541748,22.2261,168.61,168.54,21.68336092]
[1729628542048,4.44010267,168.6,168.54,21.68336092]
[1729628542256,22.2261,168.61,168.54,21.68336092]
[1729628542427,4.43985654,168.6,168.54,21.68336092]
[1729628542747,22.2261,168.61,168.54,21.68336092]
[1729628543044,4.43985376,168.6,168.54,21.68336092]
[1729628543251,22.2261,168.61,168.54,21.68336092]
[1729628543442,4.43964528,168.6,168.54,21.68336092]
[1729628543641,22.2261,168.61,168.54,21.68336092]
[1729628543959,4.43960312,168.6,168.54,21.68336092]
[1729628544126,22.2261,168.61,168.54,21.68336092]
[1729628544327,4.4394633,168.6,168.54,21.68336092]
[1729628544528,22.2261,168.61,168.54,21.68336092]
[1729628544730,4.43925123,168.6,168.54,21.68336092]
[1729628544953,22.2261,168.61,168.54,21.68336092]
[1729628545149,4.4392509,168.6,168.54,21.68336092]
[1729628545454,22.2261,168.61,168.54,21.68336092]
[1729628545622,4.43903154,168.6,168.54,21.68336092]
[1729628545824,22.2261,168.61,168.54,21.68336092]
[1729628546052,4.43902748,168.6,168.54,21.68336092]
[1729628546248,22.2261,168.61,168.54,21.68336092]
[1729628546455,4.43894434,168.6,168.54,21.68336092]
[1729628546628,22.2261,168.61,168.54,21.68336092]
[1729628546933,4.43894434,168.6,168.54,21.68336092]
[1729628547130,22.2261,168.61,168.54,21.68336092]
[1729628547342,4.43897189,168.6,168.54,21.68336092]
[1729628547543,22.2261,168.61,168.54,21.68336092]
[1729628547744,4.43886307,168.6,168.54,21.68336092]
[1729628547944,22.2261,168.61,168.54,21.68336092]
[1729628548149,4.4388634,168.6,168.54,21.68336092]
[1729628548343,22.2261,168.61,168.54,21.68336092]
[1729628548522,4.43887361,168.6,168.54,21.68336092]
[1729628548726,22.2261,168.61,168.54,21.68336092]
[1729628548926,4.43886922,168.6,168.54,21.68336092]
[1729628549127,22.2261,168.61,168.54,21.68336092]
[1729628549327,4.43898165,168.6,168.54,21.68336092]
[1729628549527,22.2261,168.61,168.54,21.68336092]
[1729628549743,4.43892141,168.6,168.54,21.68336092]
[1729628549936,22.2261,168.61,168.54,21.68336092]
[1729628550134,4.43894162,168.6,168.54,21.68336092]
[1729628550364,22.2261,168.61,168.54,21.68336092]
[1729628550654,4.43900041,168.6,168.54,21.68336092]
[1729628550950,22.2261,168.61,168.54,21.68336092]
[1729628551141,4.43897615,168.6,168.54,21.68336092]
[1729628551446,5.9318,168.59,168.52,23.776884]
[1729628551650,5.9319,168.58,168.51,21.68336092]
[1729628551854,5.9323,168.57,168.49,21.68336092]
[1729628552242,5.9326,168.56,168.49,21.68336092]
[1729628553536,5.9326,168.56,168.47,6.4567]
[1729628553537,5.9322,168.57,168.5,21.68336092]
[1729628557738,5.9322,168.57,168.51,21.68336092]
[1729628561534,5.9322,168.57,168.47,6.4567]
[1729628561747,5.9322,168.57,168.5,21.68336092]
[1729628566570,43.776884,168.61,168.5,21.68336092]
[1729628566752,5.9331,168.55,168.48,21.68336092]
[1729628571177,21.0263,168.58,168.43,6.6156]
[1729628571480,5.9347,168.5,168.43,10.84168046]
[1729628571651,5.9347,168.5,168.42,16.3431]
[1729628571652,5.9347,168.5,168.42,21.68336092]
[1729628571851,5.9354,168.48,168.41,21.68336092]
[1729628572050,5.9354,168.48,168.37,8.90202779]
[1729628572266,5.9354,168.48,168.4,21.68336092]
[1729628572886,5.9351,168.49,168.41,21.68336092]
[1729628573079,5.9357,168.48,168.41,21.68336092]
[1729628573647,5.936,168.47,168.4,21.68336092]
[1729628577968,5.936,168.47,168.36,6.22878488]
[1729628578171,5.936,168.47,168.4,21.68336092]
[1729628578559,5.9361,168.46,168.39,21.68336092]
[1729628578872,5.9361,168.46,168.34,8.51465609]
[1729628578873,5.9361,168.46,168.38,21.68336092]
[1729628580479,20.0,168.47,168.37,21.68336092]
[1729628580681,20.0,168.47,168.36,21.68336092]
[1729628580880,20.0,168.47,168.34,6.3317]
[1729628580881,20.0,168.42,168.34,21.68336092]
[1729628581189,41.6226,168.42,168.34,21.68336092]
[1729628581775,5.9382,168.41,168.33,0.453418]
[1729628581991,20.0,168.4,168.33,0.453418]
[1729628582166,20.0,168.38,168.33,0.453418]
[1729628582500,5.9393,168.37,168.33,0.453418]
[1729628583480,20.0,168.36,168.33,0.453418]
[1729628584188,25.9403,168.34,168.33,0.453418]
[1729628584898,20.0,168.34,168.33,0.453418]
[1729628585066,20.0,168.35,168.33,0.453418]
[1729628586066,5.9403,168.34,168.33,0.453418]
[1729628586269,25.9403,168.34,168.33,0.453418]
[1729628587594,49.717184,168.34,168.33,0.453418]
[1729628587907,49.717184,168.34,168.19,6.18415758]
[1729628587908,15.0589,168.33,168.23,21.68336092]
[1729628588195,5.9423,168.29,168.21,21.68336092]
[1729628588493,5.9423,168.29,168.16,109.62795908]
[1729628588494,5.9423,168.29,168.2,21.68336092]
[1729628588898,5.9434,168.26,168.16,22.8945154]
[1729628589099,5.9428,168.27,168.19,21.68336092]
[1729628589401,20.0,168.26,168.18,21.68336092]
[1729628592482,20.0,168.26,168.19,21.68336092]
[1729628594781,20.0,168.3,168.19,21.68336092]
[1729628595003,5.9432,168.26,168.19,21.68336092]
[1729628595426,5.9432,168.26,168.18,21.68336092]
[1729628595605,20.0,168.25,168.16,22.8945154]
[1729628595778,20.0,168.24,168.16,28.83007632]
[1729628595986,25.944,168.24,168.16,22.30137632]
[1729628596189,25.944,168.24,168.16,0.6180154]
[1729628596190,5.9447,168.22,168.16,0.6180154]
[1729628597113,23.776884,168.23,168.16,0.6180154]
[1729628597284,25.9463,168.17,168.16,0.6180154]
[1729628597813,20.0,168.17,168.16,0.6180154]
[1729628598610,25.9463,168.17,168.16,0.6180154]
[1729628598983,41.6396,168.17,168.16,0.6180154]
[1729628599187,65.416484,168.17,168.16,0.6180154]
[1729628599492,5.9477,168.13,168.02,6.3088]
[1729628599689,5.9477,168.13,168.05,21.68336092]
[1729628599990,20.0,168.15,168.08,21.68336092]
[1729628600216,21.87719624,168.17,168.08,21.68336092]
[1729628600396,5.9471,168.15,168.08,21.68336092]
[1729628601814,5.9471,168.15,168.07,21.68336092]
[1729628602203,5.9471,168.15,168.08,21.68336092]
[1729628602508,15.6933,168.17,168.02,6.3088]
[1729628602720,5.9474,168.14,168.07,21.68336092]
[1729628606520,5.9474,168.14,168.06,21.68336092]
[1729628606903,5.9474,168.14,168.07,21.68336092]
[1729628611193,5.9474,168.14,168.08,10.84168046]
[1729628611510,5.9474,168.14,168.08,21.68336092]
[1729628611713,5.9474,168.14,168.07,21.68336092]
[1729628611923,20.0,168.15,168.02,6.3088]
[1729628612223,20.0,168.1,168.02,6.3088]
[1729628612596,5.9491,168.09,168.02,27.99216092]
[1729628612821,20.0,168.1,168.03,21.68336092]
[1729628613310,20.0,168.1,168.02,27.99216092]
[1729628614206,20.0,168.13,168.05,21.68336092]
[1729628614402,20.0,168.11,168.05,21.68336092]
[1729628614604,20.0,168.11,168.04,21.68336092]
[1729628615817,20.0,168.11,168.02,6.3088]
[1729628616126,25.9485,168.11,168.03,21.68336092]
[1729628616423,0.1,168.14,168.02,6.3088]
[1729628616600,0.1,168.14,167.99,0.6180154]
[1729628616601,5.9496,168.08,168.01,21.68336092]
[1729628617503,15.8428,168.12,168.0,21.68336092]
[1729628617504,5.95,168.07,168.0,21.68336092]
[1729628617945,5.9494,168.09,168.02,10.84168046]
[1729628618122,22.02848982,168.16,168.08,21.68336092]
[1729628618432,5.9473,168.15,168.09,21.68336092]
[1729628618624,5.9473,168.15,168.08,21.68336092]
[1729628619119,22.02848982,168.16,168.1,21.68336092]
[1729628619320,15.8428,168.16,168.09,21.68336092]
[1729628619702,15.8428,168.16,168.11,21.68336092]
[1729628620533,5.9473,168.15,168.1,21.68336092]
[1729628620826,15.8428,168.16,168.09,21.68336092]
[1729628621025,5.9474,168.14,168.09,21.68336092]
[1729628622635,5.9474,168.14,168.1,21.68336092]
[1729628622834,20.0,168.13,168.09,21.68336092]
[1729628625418,20.0,168.13,168.06,6.553]
[1729628625419,20.0,168.13,168.1,21.68336092]
[1729628631228,5.9479,168.13,168.09,21.68336092]
[1729628631432,5.9479,168.13,168.06,6.553]
[1729628631433,5.9479,168.13,168.1,21.68336092]
[1729628632018,25.9472,168.15,168.11,21.68336092]
[1729628632242,20.0,168.15,168.12,21.68336092]
[1729628632442,15.8428,168.16,168.12,21.68336092]
[1729628632746,18.48756878,168.18,168.15,21.68336092]
[1729628633128,18.48756878,168.18,168.16,21.68336092]
[1729628633530,5.9446,168.22,168.17,21.68336092]
[1729628633727,6.461,168.23,168.17,21.68336092]
[1729628633948,5.9451,168.21,168.16,21.68336092]
[1729628634441,5.9451,168.21,168.15,21.68336092]
[1729628635232,20.0,168.2,168.15,21.68336092]
[1729628635628,5.9459,168.19,168.15,21.68336092]
[1729628636940,5.9466,168.17,168.07,16.3897]
[1729628637150,20.0,168.16,168.11,21.68336092]
[1729628637389,5.9475,168.14,168.11,21.68336092]
[1729628637844,5.9475,168.14,168.07,16.3897]
[1729628637845,5.9475,168.14,168.1,21.68336092]
[1729628639446,5.9475,168.14,168.09,21.68336092]
[1729628640359,5.9478,168.13,168.09,21.68336092]
[1729628640537,5.9478,168.13,168.1,21.68336092]
[1729628642946,5.9478,168.13,168.09,21.68336092]
[1729628643439,5.9481,168.12,168.09,21.68336092]
[1729628644658,5.9485,168.11,168.06,6.553]
[1729628644854,5.9485,168.11,168.08,21.68336092]
[1729628645056,5.9485,168.11,168.09,21.68336092]
[1729628645658,5.9481,168.12,168.08,21.68336092]
[1729628646956,5.9498,168.08,168.02,22.4786]
[1729628647133,5.9484,168.11,168.06,21.68336092]
[1729628647535,5.9484,168.11,168.07,21.68336092]
[1729628647856,20.0,168.13,168.07,21.68336092]
[1729628648250,20.0,168.15,168.08,21.68336092]
[1729628648453,4.42906371,168.14,168.1,10.84168046]
[1729628648636,4.42906371,168.14,168.02,22.5786]
[1729628648637,20.0,168.15,168.11,21.68336092]
[1729628648958,5.9467,168.16,168.11,21.68336092]
[1729628650251,20.0,168.15,168.1,21.68336092]
[1729628650862,20.0,168.15,168.11,21.68336092]
[1729628653243,20.0,168.15,168.13,21.68336092]
[1729628653565,20.0,168.17,168.14,21.68336092]
[1729628653743,20.0,168.17,168.15,21.68336092]
[1729628654054,5.9461,168.18,168.15,21.68336092]
[1729628654457,5.9461,168.18,168.14,21.68336092]
[1729628654651,5.9461,168.18,168.13,21.68336092]
[1729628655046,23.776884,168.2,168.1,21.68336092]
[1729628655246,5.9473,168.15,168.09,21.68336092]
[1729628655481,5.9473,168.15,168.11,21.68336092]
[1729628656266,5.9473,168.15,168.12,21.68336092]
[1729628656868,5.9462,168.18,168.13,21.68336092]
[1729628657645,23.776884,168.2,168.13,21.68336092]
[1729628657956,5.9463,168.17,168.13,21.68336092]
[1729628661251,20.0,168.2,168.13,21.68336092]
[1729628661450,20.0,168.17,168.14,21.68336092]
[1729628662064,20.0,168.18,168.14,21.68336092]
[1729628662569,24.43364991,168.19,168.15,21.68336092]
[1729628662762,20.0,168.19,168.15,21.68336092]
[1729628663369,5.9438,168.24,168.18,21.68336092]